[Event "Titled Tuesday Blitz August 08 Late 2023"]
[White "Skaric, Djuro"]
[Black "Cheer_Down"]
[WhiteFideId "934569"]
[WhiteElo "2330"]
[BlackElo "2469"]
[Result "0-1"]
[Round "8"]
[TimeControl "180+1"]
[Date "2023.08.08"]
[WhiteClock "0:00:00"]
[BlackClock "0:00:10"]
[Board "90"]

1. g3 {[%clk 0:03:00]}  d5 {[%clk 0:02:56]} 2. Bg2 {[%clk 0:03:00]}  Nc6 {[%clk 0:02:54]} 3. d3 {[%clk 0:02:59]}  e5 {[%clk 0:02:54]} 4. Nf3 {[%clk 0:02:59]}  Nf6 {[%clk 0:02:53]} 5. O-O {[%clk 0:03:00]}  Be7 {[%clk 0:02:53]} 6. Nc3 {[%clk 0:02:59]}  O-O {[%clk 0:02:50]} 7. e4 {[%clk 0:02:58]}  dxe4 {[%clk 0:02:49]} 8. dxe4 {[%clk 0:02:58]}  Qxd1 {[%clk 0:02:49]} 9. Rxd1 {[%clk 0:02:59]}  Bg4 {[%clk 0:02:49]} 10. Be3 {[%clk 0:02:55]}  Rfd8 {[%clk 0:02:40]} 11. a3 {[%clk 0:02:46]}  Bxf3 {[%clk 0:02:29]} 12. Bxf3 {[%clk 0:02:43]}  Nd4 {[%clk 0:02:30]} 13. Bxd4 {[%clk 0:02:44]}  exd4 {[%clk 0:02:29]} 14. Ne2 {[%clk 0:02:43]}  c5 {[%clk 0:02:28]} 15. b3 {[%clk 0:02:36]}  Rac8 {[%clk 0:02:17]} 16. Bg2 {[%clk 0:02:18]}  Ng4 {[%clk 0:01:55]} 17. h3 {[%clk 0:02:16]}  Ne5 {[%clk 0:01:55]} 18. f4 {[%clk 0:02:16]}  d3 {[%clk 0:01:55]} 19. cxd3 {[%clk 0:02:11]}  Nxd3 {[%clk 0:01:56]} 20. Nc3 {[%clk 0:02:07]}  c4 {[%clk 0:01:49]} 21. b4 {[%clk 0:02:07]}  a5 {[%clk 0:01:37]} 22. Nd5 {[%clk 0:02:05]}  Bf8 {[%clk 0:01:37]} 23. bxa5 {[%clk 0:02:04]}  Ra8 {[%clk 0:01:23]} 24. e5 {[%clk 0:01:59]}  Rxa5 {[%clk 0:01:19]} 25. Nb4 {[%clk 0:01:41]}  Bxb4 {[%clk 0:01:13]} 26. axb4 {[%clk 0:01:41]}  Rxa1 {[%clk 0:01:13]} 27. Rxa1 {[%clk 0:01:39]}  c3 {[%clk 0:01:13]} 28. Be4 {[%clk 0:01:36]}  Nxb4 {[%clk 0:01:06]} 29. Rc1 {[%clk 0:01:27]}  Na2 {[%clk 0:00:58]} 30. Ra1 {[%clk 0:01:23]}  Rd2 {[%clk 0:00:53]} 31. Rb1 {[%clk 0:00:43]}  c2 {[%clk 0:00:33]} 32. Bxc2 {[%clk 0:00:42]}  Rxc2 {[%clk 0:00:34]} 33. Rxb7 {[%clk 0:00:42]}  g6 {[%clk 0:00:34]} 34. Rb8+ {[%clk 0:00:39]}  Kg7 {[%clk 0:00:33]} 35. Rb7 {[%clk 0:00:39]}  Kf8 {[%clk 0:00:32]} 36. Rb8+ {[%clk 0:00:30]}  Ke7 {[%clk 0:00:32]} 37. Rh8 {[%clk 0:00:29]}  h5 {[%clk 0:00:31]} 38. g4 {[%clk 0:00:26]}  hxg4 {[%clk 0:00:31]} 39. hxg4 {[%clk 0:00:26]}  Nc3 {[%clk 0:00:31]} 40. Kf1 {[%clk 0:00:23]}  Nd5 {[%clk 0:00:30]} 41. f5 {[%clk 0:00:23]}  gxf5 {[%clk 0:00:31]} 42. g5 {[%clk 0:00:21]}  f4 {[%clk 0:00:26]} 43. Rh7 {[%clk 0:00:21]}  Ke6 {[%clk 0:00:26]} 44. Ke1 {[%clk 0:00:17]}  Rc4 {[%clk 0:00:22]} 45. Kf2 {[%clk 0:00:16]}  Re4 {[%clk 0:00:22]} 46. Kf3 {[%clk 0:00:14]}  Rxe5 {[%clk 0:00:21]} 47. Rh6+ {[%clk 0:00:14]}  Ke7 {[%clk 0:00:20]} 48. Kg4 {[%clk 0:00:13]}  Re1 {[%clk 0:00:17]} 49. Ra6 {[%clk 0:00:11]}  Re6 {[%clk 0:00:15]} 50. Ra7+ {[%clk 0:00:10]}  Kf8 {[%clk 0:00:15]} 51. Kf5 {[%clk 0:00:10]}  Kg7 {[%clk 0:00:14]} 52. Rd7 {[%clk 0:00:07]}  Ne7+ {[%clk 0:00:11]} 53. Kxf4 {[%clk 0:00:06]}  Ng6+ {[%clk 0:00:12]} 54. Kf5 {[%clk 0:00:06]}  Re5+ {[%clk 0:00:11]} 55. Kg4 {[%clk 0:00:06]}  Ra5 {[%clk 0:00:11]} 56. Rd4 {[%clk 0:00:06]}  Rb5 {[%clk 0:00:11]} 57. Re4 {[%clk 0:00:06]}  Ne5+ {[%clk 0:00:11]} 58. Kg3 {[%clk 0:00:05]}  Ng6 {[%clk 0:00:11]} 59. Kg4 {[%clk 0:00:05]}  Rb1 {[%clk 0:00:12]} 60. Kg3 {[%clk 0:00:05]}  Rg1+ {[%clk 0:00:12]} 61. Kf3 {[%clk 0:00:05]}  Rxg5 {[%clk 0:00:12]} 62. Rd4 {[%clk 0:00:05]}  Rf5+ {[%clk 0:00:12]} 63. Kg4 {[%clk 0:00:05]}  Rf6 {[%clk 0:00:13]} 64. Kg5 {[%clk 0:00:05]}  Re6 {[%clk 0:00:13]} 65. Rd7 {[%clk 0:00:06]}  Re5+ {[%clk 0:00:13]} 66. Kg4 {[%clk 0:00:05]}  Re7 {[%clk 0:00:13]} 67. Rd6 {[%clk 0:00:05]}  Re6 {[%clk 0:00:13]} 68. Rd5 {[%clk 0:00:05]}  Kf6 {[%clk 0:00:13]} 69. Rd8 {[%clk 0:00:05]}  Re4+ {[%clk 0:00:13]} 70. Kf3 {[%clk 0:00:05]}  Ra4 {[%clk 0:00:13]} 71. Rd6+ {[%clk 0:00:05]}  Kg5 {[%clk 0:00:13]} 72. Rd5+ {[%clk 0:00:06]}  f5 {[%clk 0:00:13]} 73. Rc5 {[%clk 0:00:05]}  Ra3+ {[%clk 0:00:13]} 74. Kg2 {[%clk 0:00:05]}  Kg4 {[%clk 0:00:13]} 75. Rc6 {[%clk 0:00:05]}  Nf4+ {[%clk 0:00:14]} 76. Kf2 {[%clk 0:00:05]}  Ra2+ {[%clk 0:00:13]} 77. Kf1 {[%clk 0:00:04]}  Kf3 {[%clk 0:00:12]} 78. Rc3+ {[%clk 0:00:04]}  Ke4 {[%clk 0:00:12]} 79. Kg1 {[%clk 0:00:03]}  Nd3 {[%clk 0:00:11]} 80. Rc4+ {[%clk 0:00:03]}  Ke3 {[%clk 0:00:11]} 81. Rc5 {[%clk 0:00:03]}  f4 {[%clk 0:00:12]} 82. Rc6 {[%clk 0:00:03]}  Ra1+ {[%clk 0:00:10]} 83. Kh2 {[%clk 0:00:02]}  f3 {[%clk 0:00:11]} 84. Kg3 {[%clk 0:00:02]}  Rg1+ {[%clk 0:00:10]} 85. Kh2 {[%clk 0:00:01]}  Rg8 {[%clk 0:00:10]} 86. Re6+ {[%clk 0:00:02]}  Kf2 {[%clk 0:00:10]} 87. Rf6 {[%clk 0:00:00]}  Rh8+ {[%clk 0:00:10]} 0-1


[Site "https://www.chess.com"]

[Event "Titled Tuesday Blitz August 08 Late 2023"]
[White "Kubatko, Ivan"]
[Black "Talbi, Chafik"]
[WhiteFideId "24111473"]
[BlackFideId "7903715"]
[WhiteElo "2451"]
[BlackElo "2317"]
[Result "1-0"]
[Round "8"]
[TimeControl "180+1"]
[Date "2023.08.08"]
[WhiteClock "0:00:06"]
[BlackClock "0:00:00"]
[Board "94"]

1. e4 {[%clk 0:03:00]}  c6 {[%clk 0:03:00]} 2. d4 {[%clk 0:03:00]}  d5 {[%clk 0:03:01]} 3. exd5 {[%clk 0:03:01]}  cxd5 {[%clk 0:03:01]} 4. c4 {[%clk 0:03:02]}  Nf6 {[%clk 0:03:01]} 5. Nc3 {[%clk 0:03:00]}  Nc6 {[%clk 0:03:01]} 6. Bg5 {[%clk 0:02:59]}  e6 {[%clk 0:03:00]} 7. Nf3 {[%clk 0:02:57]}  Be7 {[%clk 0:03:00]} 8. Bd3 {[%clk 0:02:54]}  dxc4 {[%clk 0:03:00]} 9. Bxc4 {[%clk 0:02:55]}  h6 {[%clk 0:02:59]} 10. Bh4 {[%clk 0:02:54]}  a6 {[%clk 0:02:59]} 11. a3 {[%clk 0:02:52]}  b5 {[%clk 0:02:59]} 12. Ba2 {[%clk 0:02:52]}  Bb7 {[%clk 0:02:58]} 13. O-O {[%clk 0:02:53]}  O-O {[%clk 0:02:48]} 14. Rc1 {[%clk 0:02:52]}  Nd5 {[%clk 0:02:39]} 15. Bg3 {[%clk 0:02:45]}  Nxc3 {[%clk 0:02:34]} 16. Rxc3 {[%clk 0:02:46]}  Bf6 {[%clk 0:02:27]} 17. Rd3 {[%clk 0:02:44]}  Ne7 {[%clk 0:02:15]} 18. Re1 {[%clk 0:02:39]}  Bd5 {[%clk 0:02:09]} 19. Bb1 {[%clk 0:02:36]}  Nf5 {[%clk 0:02:09]} 20. Rd2 {[%clk 0:02:10]}  Bxf3 {[%clk 0:01:51]} 21. gxf3 {[%clk 0:01:50]}  Nxd4 {[%clk 0:01:34]} 22. Kg2 {[%clk 0:01:38]}  Ra7 {[%clk 0:01:17]} 23. Re4 {[%clk 0:01:30]}  Rd7 {[%clk 0:01:13]} 24. Rd3 {[%clk 0:01:04]}  Re8 {[%clk 0:00:44]} 25. h4 {[%clk 0:00:50]}  Ree7 {[%clk 0:00:39]} 26. Rg4 {[%clk 0:00:41]}  Nf5 {[%clk 0:00:39]} 27. h5 {[%clk 0:00:34]}  Rxd3 {[%clk 0:00:37]} 28. Qxd3 {[%clk 0:00:28]}  Qxd3 {[%clk 0:00:35]} 29. Bxd3 {[%clk 0:00:29]}  Bxb2 {[%clk 0:00:29]} 30. a4 {[%clk 0:00:25]}  Rd7 {[%clk 0:00:22]} 31. Be4 {[%clk 0:00:11]}  bxa4 {[%clk 0:00:19]} 32. Bxf5 {[%clk 0:00:10]}  exf5 {[%clk 0:00:17]} 33. Rxa4 {[%clk 0:00:11]}  Ra7 {[%clk 0:00:14]} 34. Bb8 {[%clk 0:00:09]}  Ra8 {[%clk 0:00:14]} 35. Bd6 {[%clk 0:00:09]}  Bc3 {[%clk 0:00:12]} 36. Kf1 {[%clk 0:00:09]}  g6 {[%clk 0:00:10]} 37. hxg6 {[%clk 0:00:08]}  fxg6 {[%clk 0:00:10]} 38. Bf4 {[%clk 0:00:08]}  g5 {[%clk 0:00:09]} 39. Bd6 {[%clk 0:00:08]}  Kf7 {[%clk 0:00:09]} 40. Ke2 {[%clk 0:00:08]}  a5 {[%clk 0:00:07]} 41. Kd3 {[%clk 0:00:07]}  Be1 {[%clk 0:00:06]} 42. Kc4 {[%clk 0:00:08]}  Bxf2 {[%clk 0:00:05]} 43. Kd5 {[%clk 0:00:09]}  Kg6 {[%clk 0:00:04]} 44. Kc6 {[%clk 0:00:09]}  h5 {[%clk 0:00:03]} 45. Kd7 {[%clk 0:00:10]}  g4 {[%clk 0:00:03]} 46. Ke6 {[%clk 0:00:11]}  g3 {[%clk 0:00:02]} 47. Ra2 {[%clk 0:00:10]}  a4 {[%clk 0:00:00]} 48. Bf4 {[%clk 0:00:06]} 1-0


[Site "https://www.chess.com"]

[Event "Titled Tuesday Blitz August 08 Late 2023"]
[White "Omariev, Maksim"]
[Black "Steindl, Johannes"]
[WhiteFideId "4193423"]
[BlackFideId "1643266"]
[WhiteElo "2447"]
[BlackElo "2299"]
[Result "1-0"]
[Round "8"]
[TimeControl "180+1"]
[Date "2023.08.08"]
[WhiteClock "0:00:03"]
[BlackClock "0:00:06"]
[Board "95"]

1. g4 {[%clk 0:02:44]}  Nf6 {[%clk 0:02:54]} 2. g5 {[%clk 0:02:43]}  Ng8 {[%clk 0:02:53]} 3. Bg2 {[%clk 0:02:42]}  e5 {[%clk 0:02:49]} 4. d4 {[%clk 0:02:40]}  exd4 {[%clk 0:02:47]} 5. Nf3 {[%clk 0:02:34]}  d5 {[%clk 0:02:37]} 6. Nxd4 {[%clk 0:02:13]}  Nc6 {[%clk 0:02:29]} 7. Nc3 {[%clk 0:02:12]}  Bc5 {[%clk 0:02:26]} 8. Nb3 {[%clk 0:02:10]}  Bb4 {[%clk 0:02:18]} 9. Qxd5 {[%clk 0:02:06]}  Qxd5 {[%clk 0:02:18]} 10. Bxd5 {[%clk 0:02:06]}  Nge7 {[%clk 0:02:18]} 11. Be4 {[%clk 0:01:58]}  Bh3 {[%clk 0:02:10]} 12. Bd2 {[%clk 0:01:56]}  O-O-O {[%clk 0:02:08]} 13. O-O-O {[%clk 0:01:57]}  Ng6 {[%clk 0:01:45]} 14. a3 {[%clk 0:01:56]}  Be7 {[%clk 0:01:44]} 15. Nd5 {[%clk 0:01:51]}  Rhe8 {[%clk 0:01:40]} 16. Nxe7+ {[%clk 0:01:48]}  Rxe7 {[%clk 0:01:39]} 17. f3 {[%clk 0:01:43]}  Nce5 {[%clk 0:01:30]} 18. Bc3 {[%clk 0:00:59]}  c6 {[%clk 0:01:02]} 19. Rxd8+ {[%clk 0:00:56]}  Kxd8 {[%clk 0:01:03]} 20. Rd1+ {[%clk 0:00:56]}  Kc8 {[%clk 0:01:02]} 21. e3 {[%clk 0:00:40]}  Bg2 {[%clk 0:00:45]} 22. Nd2 {[%clk 0:00:35]}  f6 {[%clk 0:00:32]} 23. Rg1 {[%clk 0:00:35]}  Bh3 {[%clk 0:00:31]} 24. gxf6 {[%clk 0:00:32]}  gxf6 {[%clk 0:00:32]} 25. Rg3 {[%clk 0:00:27]}  Bd7 {[%clk 0:00:29]} 26. f4 {[%clk 0:00:27]}  Ng4 {[%clk 0:00:22]} 27. h3 {[%clk 0:00:17]}  Nf2 {[%clk 0:00:15]} 28. Bg2 {[%clk 0:00:18]}  f5 {[%clk 0:00:15]} 29. Nc4 {[%clk 0:00:06]}  Kc7 {[%clk 0:00:14]} 30. Bb4 {[%clk 0:00:04]}  Re8 {[%clk 0:00:13]} 31. Bd6+ {[%clk 0:00:04]}  Kc8 {[%clk 0:00:13]} 32. Be5 {[%clk 0:00:04]}  Rg8 {[%clk 0:00:13]} 33. Kd2 {[%clk 0:00:02]}  b5 {[%clk 0:00:12]} 34. Nd6+ {[%clk 0:00:02]}  Kd8 {[%clk 0:00:13]} 35. Ke2 {[%clk 0:00:03]}  Ke7 {[%clk 0:00:13]} 36. Kxf2 {[%clk 0:00:03]}  Rd8 {[%clk 0:00:10]} 37. h4 {[%clk 0:00:03]}  Be6 {[%clk 0:00:10]} 38. h5 {[%clk 0:00:03]}  Nxe5 {[%clk 0:00:06]} 39. fxe5 {[%clk 0:00:03]} 1-0


[Site "https://www.chess.com"]

[Event "Titled Tuesday Blitz August 08 Late 2023"]
[White "Bogaudinov, Rushan"]
[Black "The_Straightforward_Rook"]
[WhiteFideId "4129288"]
[WhiteElo "2429"]
[BlackElo "2287"]
[Result "0-1"]
[Round "8"]
[TimeControl "180+1"]
[Date "2023.08.08"]
[WhiteClock "0:00:03"]
[BlackClock "0:00:52"]
[Board "96"]

1. c4 {[%clk 0:02:21]}  e5 {[%clk 0:02:59]} 2. e3 {[%clk 0:02:21]}  Nf6 {[%clk 0:02:59]} 3. Nc3 {[%clk 0:02:21]}  d5 {[%clk 0:02:57]} 4. cxd5 {[%clk 0:02:21]}  Nxd5 {[%clk 0:02:57]} 5. a3 {[%clk 0:02:21]}  Nc6 {[%clk 0:02:54]} 6. Qc2 {[%clk 0:02:20]}  Be7 {[%clk 0:02:54]} 7. b4 {[%clk 0:02:19]}  O-O {[%clk 0:02:51]} 8. Bb2 {[%clk 0:02:20]}  Nxc3 {[%clk 0:02:49]} 9. dxc3 {[%clk 0:02:13]}  Be6 {[%clk 0:02:45]} 10. c4 {[%clk 0:02:13]}  f6 {[%clk 0:02:41]} 11. Nf3 {[%clk 0:02:10]}  Kh8 {[%clk 0:02:40]} 12. Be2 {[%clk 0:02:07]}  Qe8 {[%clk 0:02:38]} 13. O-O {[%clk 0:02:07]}  a5 {[%clk 0:02:35]} 14. b5 {[%clk 0:02:05]}  Nb8 {[%clk 0:02:36]} 15. c5 {[%clk 0:02:04]}  Qf7 {[%clk 0:02:24]} 16. a4 {[%clk 0:01:58]}  c6 {[%clk 0:02:23]} 17. Rac1 {[%clk 0:01:49]}  Nd7 {[%clk 0:02:21]} 18. Ba3 {[%clk 0:01:45]}  Rfd8 {[%clk 0:02:15]} 19. e4 {[%clk 0:01:41]}  Bb3 {[%clk 0:02:15]} 20. Qb2 {[%clk 0:01:38]}  Bxa4 {[%clk 0:02:08]} 21. Bc4 {[%clk 0:01:29]}  Qg6 {[%clk 0:02:08]} 22. Be6 {[%clk 0:01:23]}  Bxb5 {[%clk 0:02:02]} 23. Rfe1 {[%clk 0:01:21]}  Nf8 {[%clk 0:01:54]} 24. Ba2 {[%clk 0:01:17]}  Rd3 {[%clk 0:01:36]} 25. Nh4 {[%clk 0:01:11]}  Qh5 {[%clk 0:01:36]} 26. g3 {[%clk 0:01:10]}  Rad8 {[%clk 0:01:28]} 27. Nf5 {[%clk 0:01:05]}  Ng6 {[%clk 0:01:22]} 28. Nd6 {[%clk 0:00:59]}  Bxd6 {[%clk 0:01:14]} 29. cxd6 {[%clk 0:01:00]}  Qf3 {[%clk 0:01:11]} 30. Bc5 {[%clk 0:00:30]}  h5 {[%clk 0:01:11]} 31. Bf7 {[%clk 0:00:19]}  Qg4 {[%clk 0:01:06]} 32. Qe2 {[%clk 0:00:14]}  Rf3 {[%clk 0:01:01]} 33. Qa2 {[%clk 0:00:11]}  Nf4 {[%clk 0:00:59]} 34. Kh1 {[%clk 0:00:07]}  Rxg3 {[%clk 0:00:50]} 35. fxg3 {[%clk 0:00:04]}  Qf3+ {[%clk 0:00:51]} 36. Kg1 {[%clk 0:00:03]}  Nh3# {[%clk 0:00:52]} 0-1


[Site "https://www.chess.com"]

[Event "Titled Tuesday Blitz August 08 Late 2023"]
[White "Hng, Mei-En Emmanuelle"]
[Black "Karas, Marek"]
[WhiteFideId "5804566"]
[BlackFideId "14928558"]
[WhiteElo "2272"]
[BlackElo "2424"]
[Result "1-0"]
[Round "8"]
[TimeControl "180+1"]
[Date "2023.08.08"]
[WhiteClock "0:00:06"]
[BlackClock "0:00:00"]
[Board "98"]

1. e4 {[%clk 0:03:00]}  c5 {[%clk 0:02:58]} 2. d4 {[%clk 0:03:00]}  cxd4 {[%clk 0:02:55]} 3. c3 {[%clk 0:03:01]}  d3 {[%clk 0:02:55]} 4. Bxd3 {[%clk 0:03:00]}  Nc6 {[%clk 0:02:55]} 5. Bc4 {[%clk 0:02:57]}  d6 {[%clk 0:02:51]} 6. Nf3 {[%clk 0:02:57]}  e6 {[%clk 0:02:50]} 7. O-O {[%clk 0:02:57]}  Nf6 {[%clk 0:02:50]} 8. Qe2 {[%clk 0:02:56]}  Be7 {[%clk 0:02:49]} 9. Rd1 {[%clk 0:02:56]}  Qc7 {[%clk 0:02:48]} 10. a4 {[%clk 0:02:38]}  a6 {[%clk 0:02:42]} 11. Na3 {[%clk 0:02:37]}  O-O {[%clk 0:02:41]} 12. h3 {[%clk 0:02:36]}  Ne5 {[%clk 0:02:37]} 13. Nxe5 {[%clk 0:02:26]}  dxe5 {[%clk 0:02:38]} 14. Bb3 {[%clk 0:01:31]}  Bd7 {[%clk 0:02:35]} 15. Nc4 {[%clk 0:01:24]}  Bc6 {[%clk 0:02:33]} 16. Bc2 {[%clk 0:01:20]}  Rfd8 {[%clk 0:02:30]} 17. Be3 {[%clk 0:01:18]}  Rxd1+ {[%clk 0:02:28]} 18. Rxd1 {[%clk 0:01:18]}  b5 {[%clk 0:02:22]} 19. Nb6 {[%clk 0:01:08]}  Rd8 {[%clk 0:02:18]} 20. axb5 {[%clk 0:00:58]}  axb5 {[%clk 0:02:13]} 21. Rxd8+ {[%clk 0:00:49]}  Qxd8 {[%clk 0:02:11]} 22. c4 {[%clk 0:00:42]}  b4 {[%clk 0:01:44]} 23. f3 {[%clk 0:00:29]}  Qf8 {[%clk 0:01:39]} 24. Ba4 {[%clk 0:00:24]}  Bb7 {[%clk 0:01:31]} 25. Bb5 {[%clk 0:00:20]}  Bc5 {[%clk 0:01:30]} 26. Qf2 {[%clk 0:00:20]}  Bxe3 {[%clk 0:01:21]} 27. Qxe3 {[%clk 0:00:21]}  h6 {[%clk 0:01:20]} 28. c5 {[%clk 0:00:21]}  Ne8 {[%clk 0:01:16]} 29. c6 {[%clk 0:00:19]}  Nc7 {[%clk 0:00:58]} 30. Nd7 {[%clk 0:00:17]}  Qa8 {[%clk 0:00:53]} 31. cxb7 {[%clk 0:00:17]}  Qxb7 {[%clk 0:00:53]} 32. Ba4 {[%clk 0:00:14]}  f6 {[%clk 0:00:48]} 33. b3 {[%clk 0:00:14]}  Na6 {[%clk 0:00:28]} 34. Qb6 {[%clk 0:00:14]}  Qxb6+ {[%clk 0:00:23]} 35. Nxb6 {[%clk 0:00:15]}  Kf7 {[%clk 0:00:20]} 36. Kf2 {[%clk 0:00:15]}  Ke7 {[%clk 0:00:15]} 37. Ke3 {[%clk 0:00:16]}  Kd6 {[%clk 0:00:14]} 38. Kd3 {[%clk 0:00:15]}  Kc5 {[%clk 0:00:13]} 39. Nd7+ {[%clk 0:00:16]}  Kd6 {[%clk 0:00:13]} 40. Nf8 {[%clk 0:00:13]}  g5 {[%clk 0:00:10]} 41. Kc4 {[%clk 0:00:12]}  f5 {[%clk 0:00:10]} 42. Ng6 {[%clk 0:00:11]}  Nc5 {[%clk 0:00:08]} 43. Kxb4 {[%clk 0:00:10]}  fxe4 {[%clk 0:00:08]} 44. fxe4 {[%clk 0:00:11]}  Nxe4 {[%clk 0:00:09]} 45. Kc4 {[%clk 0:00:11]}  Nd2+ {[%clk 0:00:05]} 46. Kd3 {[%clk 0:00:10]}  Nf1 {[%clk 0:00:05]} 47. b4 {[%clk 0:00:10]}  Ng3 {[%clk 0:00:05]} 48. Bb3 {[%clk 0:00:08]}  e4+ {[%clk 0:00:05]} 49. Ke3 {[%clk 0:00:08]}  e5 {[%clk 0:00:02]} 50. Nf8 {[%clk 0:00:07]}  Nf5+ {[%clk 0:00:02]} 51. Kxe4 {[%clk 0:00:07]}  Nd4 {[%clk 0:00:03]} 52. Bc4 {[%clk 0:00:07]}  Nc2 {[%clk 0:00:01]} 53. b5 {[%clk 0:00:06]}  Nd4 {[%clk 0:00:02]} 54. Bd3 {[%clk 0:00:06]}  Nb3 {[%clk 0:00:01]} 55. Ng6 {[%clk 0:00:06]}  Nc5+ {[%clk 0:00:02]} 56. Ke3 {[%clk 0:00:07]}  Ne6 {[%clk 0:00:02]} 57. Be4 {[%clk 0:00:06]}  Nc5 {[%clk 0:00:02]} 58. b6 {[%clk 0:00:06]}  Nd7 {[%clk 0:00:02]} 59. b7 {[%clk 0:00:06]}  Kc7 {[%clk 0:00:02]} 60. Ne7 {[%clk 0:00:05]}  Nb6 {[%clk 0:00:03]} 61. Nf5 {[%clk 0:00:06]}  Nc4+ {[%clk 0:00:03]} 62. Kf3 {[%clk 0:00:06]}  Nd2+ {[%clk 0:00:03]} 63. Ke3 {[%clk 0:00:07]}  Nc4+ {[%clk 0:00:04]} 64. Kd3 {[%clk 0:00:07]}  Na5 {[%clk 0:00:03]} 65. Nxh6 {[%clk 0:00:07]}  Nb3 {[%clk 0:00:00]} 66. Ke3 {[%clk 0:00:06]} 1-0


[Site "https://www.chess.com"]

[Event "Titled Tuesday Blitz August 08 Late 2023"]
[White "Sailer, Mike"]
[Black "Muhammad Shahzeb"]
[WhiteFideId "2012901"]
[BlackFideId "7804806"]
[WhiteElo "2210"]
[BlackElo "2390"]
[Result "0-1"]
[Round "8"]
[TimeControl "180+1"]
[Date "2023.08.08"]
[WhiteClock "0:00:18"]
[BlackClock "0:01:18"]
[Board "102"]

1. d4 {[%clk 0:02:59]}  Nf6 {[%clk 0:02:55]} 2. Nc3 {[%clk 0:02:58]}  e6 {[%clk 0:02:55]} 3. Bf4 {[%clk 0:02:58]}  Bb4 {[%clk 0:02:53]} 4. e3 {[%clk 0:02:56]}  c5 {[%clk 0:02:49]} 5. Ne2 {[%clk 0:02:52]}  Nd5 {[%clk 0:02:47]} 6. Bg3 {[%clk 0:02:50]}  Qa5 {[%clk 0:02:44]} 7. Qd3 {[%clk 0:02:41]}  b6 {[%clk 0:02:42]} 8. Bxb8 {[%clk 0:02:28]}  Rxb8 {[%clk 0:02:40]} 9. e4 {[%clk 0:01:45]}  Nf4 {[%clk 0:01:40]} 10. Nxf4 {[%clk 0:01:35]}  cxd4 {[%clk 0:01:38]} 11. Qxd4 {[%clk 0:01:08]}  e5 {[%clk 0:01:37]} 12. Qd2 {[%clk 0:00:40]}  exf4 {[%clk 0:01:37]} 13. Bd3 {[%clk 0:00:35]}  O-O {[%clk 0:01:25]} 14. O-O {[%clk 0:00:34]}  Qe5 {[%clk 0:01:23]} 15. Nd5 {[%clk 0:00:18]}  Bxd2 {[%clk 0:01:18]} 0-1


[Site "https://www.chess.com"]

[Event "Titled Tuesday Blitz August 08 Late 2023"]
[White "laskakid"]
[Black "Korpics, Zsolt"]
[BlackFideId "705241"]
[WhiteElo "2127"]
[BlackElo "2384"]
[Result "0-1"]
[Round "8"]
[TimeControl "180+1"]
[Date "2023.08.08"]
[WhiteClock "0:00:18"]
[BlackClock "0:00:23"]
[Board "104"]

1. e4 {[%clk 0:03:00]}  c5 {[%clk 0:02:59]} 2. c3 {[%clk 0:03:00]}  Nf6 {[%clk 0:02:58]} 3. e5 {[%clk 0:02:59]}  Nd5 {[%clk 0:02:59]} 4. Nf3 {[%clk 0:03:00]}  e6 {[%clk 0:02:58]} 5. d4 {[%clk 0:02:59]}  cxd4 {[%clk 0:02:58]} 6. cxd4 {[%clk 0:02:59]}  d6 {[%clk 0:02:59]} 7. Bc4 {[%clk 0:02:59]}  Nb6 {[%clk 0:02:58]} 8. Bd3 {[%clk 0:02:57]}  Bd7 {[%clk 0:02:58]} 9. O-O {[%clk 0:02:55]}  Bc6 {[%clk 0:02:58]} 10. Nc3 {[%clk 0:02:51]}  N8d7 {[%clk 0:02:57]} 11. Re1 {[%clk 0:02:48]}  dxe5 {[%clk 0:02:49]} 12. dxe5 {[%clk 0:02:44]}  Nc5 {[%clk 0:02:47]} 13. Be2 {[%clk 0:02:34]}  Qxd1 {[%clk 0:02:12]} 14. Rxd1 {[%clk 0:02:34]}  Be7 {[%clk 0:01:59]} 15. Nd4 {[%clk 0:02:33]}  Bd7 {[%clk 0:01:51]} 16. Ndb5 {[%clk 0:02:26]}  O-O {[%clk 0:01:45]} 17. Nd6 {[%clk 0:02:21]}  Bc6 {[%clk 0:01:44]} 18. b4 {[%clk 0:02:10]}  Nca4 {[%clk 0:01:36]} 19. Nxa4 {[%clk 0:01:45]}  Nxa4 {[%clk 0:01:37]} 20. b5 {[%clk 0:01:35]}  Bd5 {[%clk 0:01:33]} 21. Bf3 {[%clk 0:01:10]}  Bxf3 {[%clk 0:00:31]} 22. gxf3 {[%clk 0:01:09]}  Rfd8 {[%clk 0:00:23]} 23. Be3 {[%clk 0:00:58]}  Nc3 {[%clk 0:00:21]} 24. Rdc1 {[%clk 0:00:44]}  Ne2+ {[%clk 0:00:19]} 25. Kf1 {[%clk 0:00:44]}  Nxc1 {[%clk 0:00:19]} 26. Rxc1 {[%clk 0:00:43]}  Bxd6 {[%clk 0:00:20]} 27. exd6 {[%clk 0:00:42]}  Rxd6 {[%clk 0:00:21]} 28. Rc7 {[%clk 0:00:42]}  b6 {[%clk 0:00:21]} 29. Bf4 {[%clk 0:00:38]}  Rd5 {[%clk 0:00:21]} 30. a4 {[%clk 0:00:37]}  Rd4 {[%clk 0:00:22]} 31. Be3 {[%clk 0:00:36]}  Rxa4 {[%clk 0:00:22]} 32. Ke2 {[%clk 0:00:27]}  Rb4 {[%clk 0:00:23]} 33. Bd2 {[%clk 0:00:18]}  Rxb5 {[%clk 0:00:23]} 0-1


[Site "https://www.chess.com"]

[Event "Titled Tuesday Blitz August 08 Late 2023"]
[White "dorpato"]
[Black "Davidson, Kevin"]
[BlackFideId "2056810"]
[WhiteElo "2080"]
[BlackElo "2373"]
[Result "0-1"]
[Round "8"]
[TimeControl "180+1"]
[Date "2023.08.08"]
[WhiteClock "0:00:00"]
[BlackClock "0:00:09"]
[Board "106"]

1. e4 {[%clk 0:02:56]}  c5 {[%clk 0:02:58]} 2. Nc3 {[%clk 0:02:49]}  a6 {[%clk 0:02:57]} 3. g3 {[%clk 0:02:46]}  b5 {[%clk 0:02:57]} 4. Bg2 {[%clk 0:02:36]}  Bb7 {[%clk 0:02:57]} 5. d3 {[%clk 0:02:24]}  e6 {[%clk 0:02:57]} 6. f4 {[%clk 0:02:21]}  Nf6 {[%clk 0:02:57]} 7. Nf3 {[%clk 0:02:20]}  b4 {[%clk 0:02:57]} 8. Ne2 {[%clk 0:02:13]}  d5 {[%clk 0:02:57]} 9. e5 {[%clk 0:02:12]}  Nfd7 {[%clk 0:02:57]} 10. O-O {[%clk 0:02:11]}  Nc6 {[%clk 0:02:57]} 11. Be3 {[%clk 0:02:07]}  Be7 {[%clk 0:02:55]} 12. c3 {[%clk 0:01:46]}  a5 {[%clk 0:02:55]} 13. d4 {[%clk 0:01:34]}  Ba6 {[%clk 0:02:46]} 14. Re1 {[%clk 0:01:25]}  O-O {[%clk 0:02:42]} 15. h3 {[%clk 0:01:16]}  bxc3 {[%clk 0:02:21]} 16. bxc3 {[%clk 0:01:11]}  Qb6 {[%clk 0:02:21]} 17. Rb1 {[%clk 0:01:09]}  Qa7 {[%clk 0:02:22]} 18. Bf2 {[%clk 0:00:52]}  Rab8 {[%clk 0:02:20]} 19. Qd2 {[%clk 0:00:45]}  Rxb1 {[%clk 0:02:11]} 20. Rxb1 {[%clk 0:00:44]}  Rb8 {[%clk 0:02:11]} 21. Qc2 {[%clk 0:00:43]}  Rxb1+ {[%clk 0:02:07]} 22. Qxb1 {[%clk 0:00:43]}  Bxe2 {[%clk 0:02:07]} 23. dxc5 {[%clk 0:00:43]}  Bxf3 {[%clk 0:01:53]} 24. Bxf3 {[%clk 0:00:38]}  Bxc5 {[%clk 0:01:53]} 25. Bxc5 {[%clk 0:00:37]}  Nxc5 {[%clk 0:01:49]} 26. Qb5 {[%clk 0:00:35]}  Ne4+ {[%clk 0:01:16]} 27. Kh2 {[%clk 0:00:18]}  Qf2+ {[%clk 0:01:12]} 28. Bg2 {[%clk 0:00:17]}  Qxg3+ {[%clk 0:01:07]} 29. Kg1 {[%clk 0:00:15]}  Qf2+ {[%clk 0:01:01]} 30. Kh2 {[%clk 0:00:11]}  Qxf4+ {[%clk 0:01:00]} 31. Kg1 {[%clk 0:00:10]}  Qc1+ {[%clk 0:00:49]} 32. Kh2 {[%clk 0:00:07]}  Qxc3 {[%clk 0:00:42]} 33. Bxe4 {[%clk 0:00:04]}  Qxe5+ {[%clk 0:00:30]} 34. Kg1 {[%clk 0:00:03]}  Qd4+ {[%clk 0:00:25]} 35. Kh2 {[%clk 0:00:02]}  dxe4 {[%clk 0:00:11]} 36. Qxc6 {[%clk 0:00:02]}  g6 {[%clk 0:00:09]} 37. Qc8+ {[%clk 0:00:00]}  Kg7 {[%clk 0:00:09]} 0-1


[Site "https://www.chess.com"]